fUSD/lending_fUSD_20240718
["ID","MTS","AMOUNT","RATE_DAILY","PERIOD"]
[332510978,1721287873695,-214.966776,0.00015014,2]
[332510979,1721287873704,-151.0,0.00015014,2]
[332510980,1721287873714,-166.398314,0.00015014,2]
[332510981,1721287873723,-151.0,0.00015014,2]
[332510982,1721287873732,-151.0,0.00015014,2]
[332510983,1721287873742,-398.11523,0.00015014,2]
[332510984,1721287873751,-286.194983,0.00015014,2]
[332510985,1721287873761,-151.0,0.00015014,2]
[332510986,1721287873770,-255.257372,0.00015014,2]
[332510987,1721287873779,-398.11523,0.00015014,2]
[332510988,1721287873788,-286.194983,0.00015014,2]
[332510989,1721287873798,-2000.0,0.0001515,2]
[332510990,1721287873807,-18738.51845528,0.000152,2]
[332510991,1721287873818,-100248.0,0.00015288,2]
[332510992,1721287873827,-151.0,0.00015288,2]
[332510993,1721287873837,-151.0,0.00015288,2]
[332510994,1721287873847,-151.0,0.00015288,2]
[332510995,1721287873856,-151.0,0.00015288,2]
[332510996,1721287873866,-151.0,0.00015288,2]
[332510997,1721287873875,-151.0,0.00015288,2]
[332510998,1721287873886,-151.0,0.00015288,2]
[332510999,1721287873897,-215.931791,0.00015288,2]
[332511000,1721287873906,-245.79031,0.00015288,2]
[332511001,1721287873917,-151.0,0.00015288,2]
[332511002,1721287873928,-151.0,0.00015288,2]
[332511003,1721287873937,-537.004728,0.00015288,2]
[332511004,1721287873947,-537.004728,0.00015288,2]
[332511005,1721287873957,-209.414174,0.00015288,2]
[332511006,1721287873967,-209.414174,0.00015288,2]
[332511007,1721287873977,-151.0,0.00015288,2]
[332511008,1721287873987,-206.238567,0.00015288,2]
[332511009,1721287873997,-242.69846,0.00015288,2]
[332511010,1721287874007,-151.0,0.00015288,2]
[332511011,1721287874017,-151.0,0.00015288,2]
[332511012,1721287874027,-151.0,0.00015288,2]
[332511013,1721287874036,-151.0,0.00015288,2]
[332511014,1721287874046,-152.144287,0.00015288,2]
[332511015,1721287874055,-151.0,0.00015288,2]
[332511016,1721287874065,-308.076882,0.00015288,2]
[332511017,1721287874076,-308.076882,0.00015288,2]
[332511018,1721287874086,-151.0,0.00015288,2]
[332511019,1721287874096,-180.19445,0.00015288,2]
[332511020,1721287874106,-180.19445,0.00015288,2]
[332511021,1721287874116,-197.93919,0.00015288,2]
[332511022,1721287874125,-151.0,0.00015288,2]
[332511023,1721287874135,-197.93919,0.00015288,2]
[332511024,1721287874145,-151.0,0.00015288,2]
[332511025,1721287874154,-820.070092,0.00015288,2]
[332511026,1721287874164,-820.070092,0.00015288,2]
[332511027,1721287874173,-151.0,0.00015288,2]
[332511028,1721287874183,-227.694673,0.00015288,2]
[332511029,1721287874193,-227.694673,0.00015288,2]
[332511030,1721287874202,-151.0,0.00015288,2]
[332511031,1721287874212,-151.0,0.00015288,2]
[332511032,1721287874222,-236.418104,0.00015288,2]
[332511033,1721287874231,-151.0,0.00015288,2]
[332511034,1721287874240,-236.418104,0.00015288,2]
[332511035,1721287874250,-426.912766,0.00015288,2]
[332511036,1721287874259,-426.912766,0.00015288,2]
[332511037,1721287874269,-225.350112,0.00015288,2]
[332511038,1721287874279,-151.0,0.00015288,2]
[332511039,1721287874288,-225.350112,0.00015288,2]
[332511040,1721287874298,-151.0,0.00015288,2]
[332511041,1721287874309,-151.0,0.00015288,2]
[332511042,1721287874320,-229.948135,0.00015288,2]
[332511043,1721287874330,-151.0,0.00015288,2]
[332511044,1721287874340,-189.855896,0.00015288,2]
[332511045,1721287874350,-229.948135,0.00015288,2]
[332511046,1721287874360,-189.855896,0.00015288,2]
[332511047,1721287874371,-151.0,0.00015288,2]
[332511048,1721287874381,-247.179419,0.00015288,2]
[332511049,1721287874391,-256.643151,0.00015288,2]
[332511050,1721287874401,-256.643151,0.00015288,2]
[332511051,1721287874413,-222.603128,0.00015288,2]
[332511052,1721287874424,-395.839856,0.00015288,2]
[332511053,1721287874435,-222.603128,0.00015288,2]
[332511054,1721287874446,-151.0,0.00015288,2]
[332511055,1721287874456,-395.839856,0.00015288,2]
[332511056,1721287874465,-151.0,0.00015288,2]
[332511057,1721287874475,-447.726977,0.00015288,2]
[332511058,1721287874486,-447.726977,0.00015288,2]
[332511059,1721287874496,-151.0,0.00015288,2]
[332511060,1721287874506,-151.0,0.00015288,2]
[332511061,1721287874516,-151.0,0.00015288,2]
[332511062,1721287874527,-10000.0,0.00015288,2]
[332511063,1721287874537,-10000.0,0.00015288,2]
[332511064,1721287874547,-151.0,0.00015288,2]
[332511065,1721287874558,-151.0,0.00015288,2]
[332511066,1721287874792,-10000.0,0.00015288,2]
[332511067,1721287874802,-151.0,0.00015288,2]
[332511068,1721287874811,-151.0,0.00015288,2]
[332511069,1721287874822,-151.0,0.00015288,2]
[332511070,1721287874832,-151.0,0.00015288,2]
[332511071,1721287874841,-151.0,0.00015288,2]
[332511072,1721287874851,-151.0,0.00015288,2]
[332511073,1721287874860,-151.0,0.00015288,2]
[332511074,1721287874870,-151.0,0.00015288,2]
[332511075,1721287874879,-151.0,0.00015288,2]
[332511076,1721287874888,-151.0,0.00015288,2]
[332511077,1721287874898,-151.0,0.00015288,2]
[332511078,1721287874907,-151.0,0.00015288,2]
[332511079,1721287874916,-151.0,0.00015288,2]
[332511080,1721287874926,-398.11523,0.00015288,2]
[332511081,1721287874936,-286.194983,0.00015288,2]
[332511082,1721287874945,-151.0,0.00015288,2]
[332511083,1721287874955,-398.11523,0.00015288,2]
[332511084,1721287874964,-286.194983,0.00015288,2]
[332511085,1721287874973,-15730.47913232,0.000154,2]
[332511086,1721287874983,-173.67,0.00015405,2]
[332511087,1721287874993,-300.0,0.00015463,2]
[332511088,1721287875002,-249.635812,0.00015616,2]
[332511089,1721287875012,-889.58,0.00015654,2]
[332511090,1721287875022,-163.06,0.00015692,2]
[332511091,1721287875031,-300.0,0.00015708,2]
[332511092,1721287875041,-155.523397,0.00015708,2]
[332511093,1721287875051,-156.48758241,0.00015708,2]
[332511094,1721287875060,-306.97211217,0.00015708,2]
[332511095,1721287875070,-529.80766427,0.00015708,2]
[332511096,1721287875080,-277.15042018,0.00015708,2]
[332511097,1721287875089,-163.92127245,0.00015708,2]
[332511098,1721287875099,-156.93836575,0.00015708,2]
[332511099,1721287875109,-499.47462034,0.00015708,2]
[332511100,1721287875118,-155.70358391,0.00015708,2]
[332511101,1721287875128,-170.51064677,0.00015708,2]
[332511102,1721287875138,-439.08494804,0.00015708,2]
[332511103,1721287875147,-167.02,0.00015831,2]
[332511104,1721287875157,-167.73,0.00015831,2]
[332511105,1721287875166,-166.63,0.00015831,2]
[332511106,1721287875176,-167.0,0.00015831,2]
[332511107,1721287875185,-343.366,0.00015832,2]
[332511108,1721287875195,-343.366,0.00015832,2]
[332511109,1721287875204,-343.366,0.00015832,2]
[332511110,1721287875213,-343.366,0.00015832,2]
[332511111,1721287875223,-343.366,0.00015832,2]
[332511112,1721287875232,-343.366,0.00015832,2]
[332511113,1721287875241,-343.366,0.00015832,2]
[332511114,1721287875251,-343.366,0.00015832,2]
[332511115,1721287875260,-343.366,0.00015832,2]
[332511116,1721287875269,-343.366,0.00015832,2]
[332511117,1721287875278,-175.02,0.00015895,2]
[332511118,1721287875288,-268.38,0.00015939,2]
[332511119,1721287875297,-1090.0,0.00016,3]
[332511120,1721287875306,-5000.0,0.00016,2]
[332511121,1721287875315,-151.0,0.00016,2]
[332511122,1721287875326,-151.0,0.00016,2]
[332511123,1721287875335,-151.0,0.00016,2]
[332511124,1721287875344,-151.0,0.00016,2]
[332511125,1721287875354,-151.0,0.00016,2]
[332511126,1721287875363,-151.0,0.00016,2]
[332511127,1721287875374,-151.0,0.00016,2]
[332511128,1721287875385,-151.0,0.00016,2]
[332511129,1721287875395,-151.0,0.00016,2]
[332511130,1721287875407,-151.0,0.00016,2]
[332511131,1721287875417,-192.437715,0.00016,2]
[332511132,1721287875427,-192.437715,0.00016,2]
[332511133,1721287875438,-151.0,0.00016,2]
[332511134,1721287875448,-151.0,0.00016,2]
[332511135,1721287875458,-151.0,0.00016,2]
[332511136,1721287875469,-151.0,0.00016,2]
[332511137,1721287875479,-257.795054,0.00016,2]
[332511138,1721287875489,-191.320755,0.00016,2]
[332511139,1721287875499,-2000.0,0.00016,2]
[332511140,1721287875509,-2000.0,0.0001601,2]
[332511141,1721287875518,-2000.0,0.0001602,2]
[332511142,1721287875527,-3564.264323,0.0001603,2]
[332511143,1721287875537,-160.7938371,0.00016045,2]
[332511144,1721287875548,-228.04541099,0.00016115,2]
[332511145,1721287875557,-176.74281651,0.00016115,2]
[332511146,1721287875566,-9999.99,0.00016116,2]
[332511147,1721287875577,-167.14,0.00016189,2]
[332511148,1721287875586,-1000.0,0.00016189,2]
[332511149,1721287875596,-420.0,0.00016189,2]
[332511150,1721287875610,-157.54,0.00016227,2]
[332511151,1721287875622,-151.0,0.00016438,2]
[332511152,1721287875634,-249.635812,0.00016438,2]
[332511153,1721287875645,-151.0,0.00016438,2]
[332511154,1721287875655,-151.0,0.00016438,2]
[332511155,1721287875666,-151.0,0.00016438,2]
[332511156,1721287875676,-3000.0,0.000167,2]
[332511157,1721287875686,-180.43,0.00016712,2]
[332511158,1721287875698,-300.0,0.00016832,2]
[332511159,1721287875710,-167.14,0.00016857,2]
[332511160,1721287875720,-2300.0,0.000169,6]
[332511161,1721287875730,-304.12281846,0.00016968,2]
[332511162,1721287875741,-152.331378,0.00016986,2]
[332511163,1721287875750,-151.0,0.00016986,2]
[332511164,1721287875760,-192.437715,0.00016986,2]
[332511165,1721287875770,-192.437715,0.00016986,2]
[332511166,1721287875780,-151.0,0.00016986,2]
[332511167,1721287875789,-151.0,0.00016986,2]
[332511168,1721287875799,-151.0,0.00016986,2]
[332511169,1721287875808,-216.84264,0.00016986,2]
[332511170,1721287875821,-151.0,0.00016986,2]
[332511171,1721287875831,-151.0,0.00016986,2]
[332511172,1721287875840,-151.0,0.00016986,2]
[332511173,1721287875850,-248.207888,0.00016986,2]
[332511174,1721287875860,-151.0,0.00016986,2]
[332511175,1721287875869,-151.0,0.00016986,2]
[332511176,1721287875879,-151.0,0.00016986,2]
[332511177,1721287875889,-151.0,0.00016986,2]
[332511178,1721287875898,-151.0,0.00016986,2]
[332511179,1721287875908,-151.0,0.00016986,2]
[332511180,1721287875918,-151.0,0.00016986,2]
[332511181,1721287875928,-537.004728,0.00016986,2]
[332511182,1721287875938,-537.004728,0.00016986,2]
[332511183,1721287875950,-537.004728,0.00016986,2]
[332511184,1721287875960,-537.004728,0.00016986,2]
[332511185,1721287875970,-209.414174,0.00016986,2]
[332511186,1721287875980,-209.414174,0.00016986,2]
[332511187,1721287875990,-209.414174,0.00016986,2]
[332511188,1721287876000,-209.414174,0.00016986,2]
[332511189,1721287876010,-151.0,0.00016986,2]
[332511190,1721287876020,-198.852493,0.00016986,2]
[332511191,1721287876030,-151.0,0.00016986,2]
[332511192,1721287876040,-820.070092,0.00016986,2]
[332511193,1721287876049,-820.070092,0.00016986,2]
[332511194,1721287876059,-151.0,0.00016986,2]
[332511195,1721287876072,-227.694673,0.00016986,2]
[332511196,1721287876083,-227.694673,0.00016986,2]
[332511197,1721287876093,-151.0,0.00016986,2]
[332511198,1721287876103,-236.418104,0.00016986,2]
[332511199,1721287876113,-236.418104,0.00016986,2]
[332511200,1721287876122,-426.912766,0.00016986,2]
[332511201,1721287876132,-426.912766,0.00016986,2]
[332511202,1721287876142,-524.53,0.00016987,2]
[332511203,1721287876151,-1870.25573483,0.00017,2]
[332511204,1721287876162,-11284.35159606,0.00017,2]
[332511205,1721287876171,-333.77,0.00017,2]
[332511206,1721287876181,-167.0,0.00017137,2]
[332511207,1721287876191,-160.7938371,0.00017189,2]
[332511208,1721287876201,-249.635812,0.0001726,2]
[332511209,1721287876211,-383.3,0.00017275,2]
[332511210,1721287876221,-151.0,0.0001735,2]
[332511211,1721287876231,-151.0,0.0001735,2]
[332511212,1721287876240,-225.350112,0.0001735,2]
[332511213,1721287876250,-151.0,0.0001735,2]
[332511214,1721287876260,-225.350112,0.0001735,2]
[332511215,1721287876270,-229.948135,0.0001735,2]
[332511216,1721287876280,-189.855896,0.0001735,2]
[332511217,1721287876290,-229.948135,0.0001735,2]
[332511218,1721287876299,-189.855896,0.0001735,2]
[332511219,1721287876309,-151.0,0.0001735,2]
[332511220,1721287876318,-447.726977,0.0001735,2]
[332511221,1721287876333,-447.726977,0.0001735,2]
[332511222,1721287876347,-151.0,0.0001735,2]
[332511223,1721287876357,-889.58,0.00017393,2]
[332511224,1721287876366,-163.06,0.00017435,2]
[332511225,1721287876376,-338.0,0.0001747,2]
[332511226,1721287876387,-252.0,0.0001747,2]
[332511227,1721287876397,-9389.5006743,0.000175,2]
[332511228,1721287876407,-167.14,0.00017525,2]
[332511229,1721287876417,-175.02,0.00017661,2]
[332511230,1721287876427,-228.584,0.00017693,2]
[332511231,1721287876437,-193.746,0.00017693,2]
[332511232,1721287876446,-199.106,0.00017693,2]
[332511233,1721287876455,-205.987,0.00017693,2]
[332511234,1721287876465,-2141.73,0.00017693,2]
[332511235,1721287876474,-349.58,0.00017693,2]
[332511236,1721287876484,-166.918,0.00017693,2]
[332511237,1721287876493,-614.914,0.00017693,2]
[332511238,1721287876502,-543.47,0.00017693,2]
[332511239,1721287876512,-1075.472,0.00017693,2]
[332511240,1721287876522,-150.42,0.00017693,2]
[332511241,1721287876532,-2431.815,0.00017693,2]
[332511242,1721287876542,-550.377,0.00017693,2]
[332511243,1721287876551,-587.0,0.00017722,2]
[332511244,1721287876561,-1487.0,0.000179,2]
[332511245,1721287876573,-1437.0,0.000179,2]
[332511246,1721287876583,-151.0,0.000179,2]
[332511247,1721287876593,-256.997714,0.000179,2]
[332511248,1721287876607,-151.0,0.000179,2]
[332511249,1721287876617,-151.0,0.000179,2]
[332511250,1721287876626,-151.0,0.000179,2]
[332511251,1721287876636,-308.076882,0.000179,2]
[332511252,1721287876646,-308.076882,0.000179,2]
[332511253,1721287876656,-180.19445,0.000179,2]
[332511254,1721287876665,-180.19445,0.000179,2]
[332511255,1721287876678,-197.93919,0.000179,2]
[332511256,1721287876697,-151.0,0.000179,2]
[332511257,1721287876711,-197.93919,0.000179,2]
[332511258,1721287876726,-151.0,0.000179,2]
[332511259,1721287876745,-151.0,0.000179,2]
[332511260,1721287876762,-151.0,0.000179,2]
[332511261,1721287876778,-151.0,0.000179,2]
[332511262,1721287876795,-383.3,0.00017978,2]
[332511263,1721287876811,-1000.0,0.00017988,2]
[332511264,1721287876824,-155.37747203,0.00018,2]
[332511265,1721287876838,-371.29329548,0.00018,2]
[332511266,1721287876854,-1466.20420616,0.00018,2]
[332511267,1721287876872,-1117.29111652,0.00018,2]
[332511268,1721287876887,-5543.33493083,0.00018,2]
[332511269,1721287876900,-151.0,0.00018,2]
[332511270,1721287876916,-151.0,0.00018,2]
[332511271,1721287876932,-151.0,0.00018,2]
[332511272,1721287876947,-151.0,0.00018,2]
[332511273,1721287876962,-256.643151,0.00018,2]
[332511274,1721287876978,-256.643151,0.00018,2]
[332511275,1721287876992,-222.603128,0.00018,2]
[332511276,1721287877007,-395.839856,0.00018,2]
[332511277,1721287877021,-222.603128,0.00018,2]
[332511278,1721287877035,-395.839856,0.00018,2]
[332511279,1721287877049,-10000.0,0.00018,2]
[332511280,1721287877064,-10000.0,0.00018,2]
[332511281,1721287877079,-151.0,0.00018,2]
[332511282,1721287877093,-151.0,0.00018,2]
[332511283,1721287877107,-10000.0,0.00018,2]
[332511284,1721287877121,-151.0,0.00018,2]
[332511285,1721287877136,-151.0,0.00018,2]
[332511286,1721287877149,-151.0,0.00018,2]
[332511287,1721287877163,-151.0,0.00018,2]
[332511288,1721287877178,-151.0,0.00018,2]
[332511289,1721287877192,-151.0,0.00018,2]
[332511290,1721287877206,-151.0,0.00018,2]
[332511291,1721287877221,-151.0,0.00018,2]
[332511292,1721287877235,-194.30656,0.00018,2]
[332511293,1721287877249,-151.0,0.00018,2]
[332511294,1721287877263,-151.0,0.00018,2]
[332511295,1721287877277,-151.0,0.00018,2]
[332511296,1721287877293,-151.0,0.00018,2]
[332511297,1721287877307,-398.11523,0.00018,2]
[332511298,1721287877320,-286.194983,0.00018,2]
[332511299,1721287877335,-151.0,0.00018,2]
[332511300,1721287877349,-398.11523,0.00018,2]
[332511301,1721287877362,-286.194983,0.00018,2]
[332511302,1721287877376,-550.98546916,0.00018002,2]
[332511303,1721287877390,-166.66666666,0.00018011,2]
[332511304,1721287877405,-150.18315018,0.00018015,2]
[332511305,1721287877420,-151.0,0.00018022,2]
[332511306,1721287877434,-151.0,0.00018022,2]
[332511307,1721287877448,-151.0,0.00018022,2]
[332511308,1721287877461,-151.0,0.00018022,2]
[332511309,1721287877476,-151.0,0.00018022,2]
[332511310,1721287877490,-157.03911617,0.00018069,2]
[332511311,1721287877503,-445.12807451,0.0001807,2]
[332511312,1721287877517,-166.66666666,0.00018074,2]
[332511313,1721287877531,-249.635812,0.00018082,2]
[332511314,1721287877545,-934.65578593,0.00018089,2]
[332511315,1721287877558,-1671.13234442,0.000181,2]
[332511316,1721287877575,-805.34233156,0.00018105,2]
[332511317,1721287877588,-151.0,0.00018147,2]
[332511318,1721287877604,-151.0,0.00018147,2]
[332511319,1721287877619,-445.12807451,0.00018148,2]
[332511320,1721287877633,-197.82356527,0.00018181,2]
[332511321,1721287877648,-449.17565101,0.00018187,2]
[332511322,1721287877662,-167.14,0.00018193,2]
[332511323,1721287877676,-197.82356527,0.00018195,2]
[332511324,1721287877697,-166.66666666,0.00018198,2]
[332511325,1721287877711,-161.84605211,0.00018207,2]
[332511326,1721287877724,-414.54398897,0.00018209,2]
[332511327,1721287877737,-414.54398897,0.00018228,2]
[332511328,1721287877751,-934.65578593,0.00018237,2]
[332511329,1721287877765,-166.66666666,0.00018257,2]
[332511330,1721287877779,-161.84605211,0.00018258,2]
[332511331,1721287877793,-166.66666666,0.00018277,2]
[332511332,1721287877807,-445.12807451,0.000183,2]
[332511333,1721287877820,-169.35308735,0.00018329,2]
[332511334,1721287877834,-150.18315018,0.00018333,2]
[332511335,1721287877847,-160.7938371,0.00018334,2]
[332511336,1721287877862,-186.77256119,0.00018338,2]
[332511337,1721287877875,-166.66666665,0.00018347,2]
[332511338,1721287877890,-934.65578593,0.00018357,2]
[332511339,1721287877903,-3155.01700328,0.00018385,2]
[332511340,1721287877917,-191.79781605,0.00018411,2]
[332511341,1721287877931,-166.66666666,0.00018421,2]
[332511342,1721287877945,-151.42828929,0.0001843,2]
[332511343,1721287877959,-805.34233156,0.00018431,2]
[332511344,1721287877973,-197.82356527,0.00018434,2]
[332511345,1721287877986,-414.54398897,0.00018436,2]
[332511346,1721287878001,-167.02,0.00018444,2]
[332511347,1721287878015,-166.63,0.00018444,2]
[332511348,1721287878029,-167.0,0.00018444,2]
[332511349,1721287878042,-2062.94975587,0.00018465,2]
[332511350,1721287878055,-805.34233156,0.00018465,2]
[332511351,1721287878069,-161.35093905,0.00018476,2]
[332511352,1721287878085,-371.32697632,0.00018491,2]
[332511353,1721287878098,-150.20291126,0.00018495,2]
[332511354,1721287878113,-161.35093905,0.00018515,2]
[332511355,1721287878127,-197.82356527,0.00018519,2]
[332511356,1721287878142,-157.54,0.00018545,2]
[332511357,1721287878156,-161.89626352,0.00018559,2]
[332511358,1721287878170,-267.41464615,0.00018563,2]
[332511359,1721287878184,-449.17565101,0.00018565,2]
[332511360,1721287878198,-267.41464615,0.00018568,2]
[332511361,1721287878211,-166.66666666,0.00018571,2]
[332511362,1721287878224,-169.51426168,0.00018576,2]
[332511363,1721287878237,-197.82356527,0.00018595,2]
[332511364,1721287878251,-3272.80559963,0.000186,2]
[332511365,1721287878265,-161.84605211,0.00018611,2]
[332511366,1721287878280,-805.34233156,0.00018615,2]
[332511367,1721287878293,-151.42828929,0.00018618,2]
[332511368,1721287878307,-150.0,0.00018623,2]
[332511369,1721287878321,-166.66666666,0.00018629,2]
[332511370,1721287878335,-2062.94975587,0.00018639,2]
[332511371,1721287878350,-449.17565101,0.00018661,2]
[332511372,1721287878363,-154.98095525,0.00018667,2]
[332511373,1721287878377,-2062.94975587,0.0001867,2]
[332511374,1721287878392,-267.41464615,0.00018673,2]
[332511375,1721287878405,-173.67,0.00018674,2]
[332511376,1721287878420,-151.42828929,0.00018676,2]
[332511377,1721287878433,-383.3,0.0001868,2]
[332511378,1721287878448,-150.50133858,0.0001868,2]
[332511379,1721287878462,-267.41464615,0.00018696,2]
[332511380,1721287878475,-267.41464615,0.00018697,2]
[332511381,1721287878490,-154.98095525,0.00018738,2]
[332511382,1721287878503,-166.66666666,0.00018764,2]
[332511383,1721287878517,-371.32697632,0.00018764,2]
[332511384,1721287878531,-197.82356527,0.00018765,2]
[332511385,1721287878545,-165.92612166,0.00018768,2]
[332511386,1721287878559,-24297.07871821,0.0001878,2]
[332511387,1721287878574,-151.0,0.0001878,2]
[332511388,1721287878588,-192.437715,0.0001878,2]
[332511389,1721287878606,-192.437715,0.0001878,2]
[332511390,1721287878619,-151.0,0.0001878,2]
[332511391,1721287878633,-151.0,0.0001878,2]
[332511392,1721287878647,-151.732552,0.0001878,2]
[332511393,1721287878661,-151.0,0.0001878,2]
[332511394,1721287878675,-151.0,0.0001878,2]
[332511395,1721287878691,-151.0,0.0001878,2]
[332511396,1721287878704,-151.0,0.0001878,2]
[332511397,1721287878718,-151.0,0.0001878,2]
[332511398,1721287878732,-151.0,0.0001878,2]
[332511399,1721287878745,-151.0,0.0001878,2]
[332511400,1721287878759,-151.0,0.0001878,2]
[332511401,1721287878772,-537.004728,0.0001878,2]
[332511402,1721287878787,-537.004728,0.0001878,2]
[332511403,1721287878800,-209.414174,0.0001878,2]
[332511404,1721287878815,-209.414174,0.0001878,2]
[332511405,1721287878829,-151.0,0.0001878,2]
[332511406,1721287878843,-820.070092,0.0001878,2]
[332511407,1721287878856,-820.070092,0.0001878,2]
[332511408,1721287878870,-151.0,0.0001878,2]
[332511409,1721287878884,-227.694673,0.0001878,2]
[332511410,1721287878899,-227.694673,0.0001878,2]
[332511411,1721287878913,-151.0,0.0001878,2]
[332511412,1721287878927,-236.418104,0.0001878,2]
[332511413,1721287878941,-236.418104,0.0001878,2]
[332511414,1721287878955,-426.912766,0.0001878,2]
[332511415,1721287878970,-426.912766,0.0001878,2]
[332511416,1721287878984,-157.03911617,0.00018784,2]
[332511417,1721287878998,-166.66666666,0.00018806,2]
[332511418,1721287879013,-225.0,0.0001881,2]
[332511419,1721287879027,-934.65578593,0.00018853,2]
[332511420,1721287879040,-166.66666666,0.00018858,2]
[332511421,1721287879053,-167.14,0.00018861,2]
[332511422,1721287879068,-157.03911617,0.00018864,2]
[332511423,1721287879086,-161.84605211,0.00018867,2]
[332511424,1721287879099,-934.65578593,0.00018868,2]
[332511425,1721287879114,-267.41464615,0.0001887,2]
[332511426,1721287879129,-934.65578593,0.00018893,2]
[332511427,1721287879142,-249.635812,0.00018904,2]
[332511428,1721287879155,-168.66562532,0.00018912,2]
[332511429,1721287879169,-150.0,0.00018915,2]
[332511430,1721287879183,-157.03911617,0.00018919,2]
[332511431,1721287879198,-150.0,0.00018924,2]
[332511432,1721287879211,-267.41464615,0.00018935,2]
[332511433,1721287879225,-550.98546916,0.0001894,2]
[332511434,1721287879240,-414.54398897,0.00018946,2]
[332511435,1721287879253,-166.66666666,0.00018948,2]
[332511436,1721287879266,-150.20291126,0.00018968,2]
[332511437,1721287879281,-161.35093905,0.00018996,2]
[332511438,1721287879295,-1002.4786,0.00018999,2]
[332511439,1721287879310,-155.48112866,0.00019,2]
[332511440,1721287879326,-155.29383961,0.00019,2]
[332511441,1721287879339,-186.20330652,0.00019,2]
[332511442,1721287879353,-159.77802033,0.00019,2]
[332511443,1721287879367,-1013.00774574,0.00019,2]
[332511444,1721287879382,-338.0,0.00019,2]
[332511445,1721287879395,-252.0,0.00019,2]
[332511446,1721287879412,-3249.0,0.00019,2]
[332511447,1721287879852,-151.0,0.00019,2]
[332511448,1721287879871,-550.98546916,0.00019012,2]
[332511449,1721287879881,-150.0,0.00019027,2]
[332511450,1721287879891,-979.61,0.00019032,2]
[332511451,1721287879901,-166.66666666,0.00019035,2]
[332511452,1721287879911,-166.90315977,0.00019038,2]
[332511453,1721287879921,-151.42828929,0.00019043,2]
[332511454,1721287879931,-472.26330489,0.00019051,2]
[332511455,1721287879940,-150.0,0.0001907,2]
[332511456,1721287879949,-150.0,0.00019074,2]
[332511457,1721287879959,-371.32697632,0.00019075,2]
[332511458,1721287879969,-717.54836549,0.00019091,2]
[332511459,1721287879979,-150.0,0.00019094,2]
[332511460,1721287879989,-150.0,0.00019095,2]
[332511461,1721287879998,-166.66666666,0.00019098,2]
[332511462,1721287880008,-150.0,0.00019114,2]
[332511463,1721287880017,-151.0,0.00019115,2]
[332511464,1721287880027,-151.0,0.00019115,2]
[332511465,1721287880036,-225.350112,0.00019115,2]
[332511466,1721287880047,-151.0,0.00019115,2]
[332511467,1721287880056,-225.350112,0.00019115,2]
[332511468,1721287880066,-229.948135,0.00019115,2]
[332511469,1721287880077,-189.855896,0.00019115,2]
[332511470,1721287880087,-229.948135,0.00019115,2]
[332511471,1721287880098,-189.855896,0.00019115,2]
[332511472,1721287880110,-151.0,0.00019115,2]
[332511473,1721287880127,-447.726977,0.00019115,2]
[332511474,1721287880137,-447.726977,0.00019115,2]
[332511475,1721287880146,-151.0,0.00019115,2]
[332511476,1721287880156,-150.0,0.00019116,2]
[332511477,1721287880165,-150.0,0.0001912,2]